[Event "Mitropa Cup Women 2019"]
[Site "Radenci"]
[Date "2019.06.02"]
[Round "7.11"]
[White "Schloffer, Jasmin-Denise"]
[Black "Varga, Klara"]
[Result "1/2-1/2"]
[ECO "E36"]
[WhiteElo "2133"]
[BlackElo "2146"]
[Annotator "ChessBase"]
[PlyCount "124"]
[EventDate "2019.05.27"]
[EventType "team-tourn"]
[EventCountry "SLO"]
[SourceTitle "playchess.com"]
[Source "ChessBase"]
[SourceQuality "1"]
[WhiteTeam "Austria"]
[BlackTeam "Hungary"]
[WhiteTeamCountry "AUT"]
[BlackTeamCountry "HUN"]
[TimeControl "40/5400+30:1800+30"]

1. d4 {[%emt 0:00:00]} Nf6 {[%emt 0:00:00]} 2. c4 {[%emt 0:00:00]} e6 {[%emt 0:00:00]} 3. Nc3 {[%emt 0:00:00]} Bb4 {[%emt 0:00:00]} 4. Qc2 {[%emt 0:00:00]} O-O {[%emt 0:00:00]} 5. a3 {[%emt 0:00:00]} Bxc3+ {[%emt 0:00:00]} 6. Qxc3 {[%emt 0:00:00]} d5 {[%emt 0:00:01]} 7. Bg5 {[%emt 0:00:08]} dxc4 {[%emt 0:00:04]} 8. Qxc4 {[%emt 0:00:04]} b6 {[%emt 0:00:04]} 9. Rd1 {[%emt 0:00:05]} Ba6 {[%emt 0:01:29]} 10. Qa4 {[%emt 0:00:05]} Qd7 {[%emt 0:00:17]} 11. Qc2 {[%emt 0:00:20]} Qc6 {[%emt 0:00:58]} 12. Qxc6 {[%emt 0:00:07]} Nxc6 {[%emt 0:00:02]} 13. Bxf6 {[%emt 0:02:40]} gxf6 {[%emt 0:00:03]} 14. e3 {[%emt 0:00:10]} Bb7 {[%emt 0:02:45]} 15. Nf3 {[%emt 0:01:40]} Rac8 {[%emt 0:01:12]} 16. Be2 {[%emt 0:01:46]} Ne7 {[%emt 0:03:33]} 17. Rc1 {[%emt 0:03:19]} Rfd8 {[%emt 0:02:40]} 18. O-O {[%emt 0:02:09]} Kf8 {[%emt 0:07:19]} 19. h3 {[%emt 0:04:26]} Ng6 {[%emt 0:13:04]} 20. Rfd1 {[%emt 0:07:19]} Ke7 {[%emt 0:01:26]} 21. b4 {[%emt 0:04:57]} c5 {[%emt 0:17:38]} 22. bxc5 {[%emt 0:07:42]} bxc5 {[%emt 0:01:35]} 23. Rxc5 {[%emt 0:00:21]} Rxc5 {[%emt 0:00:05]} 24. dxc5 {[%emt 0:00:05]} Rxd1+ {[%emt 0:04:11]} 25. Bxd1 {[%emt 0:00:09]} Bxf3 {[%emt 0:00:12]} 26. Bxf3 {[%emt 0:03:58]} Ne5 {[%emt 0:00:08]} 27. Be2 {[%emt 0:00:32]} Nd7 {[%emt 0:01:47]} 28. c6 {[%emt 0:05:48]} Ne5 {[%emt 0:00:08]} 29. Bb5 {[%emt 0:06:01]} Kd6 {[%emt 0:00:26]} 30. Kh2 {[%emt 0:00:06]} Nxc6 {[%emt 0:03:27]} 31. Kg3 {[%emt 0:00:50]} Ne7 {[%emt 0:09:49]} 32. Kg4 {[%emt 0:04:41]} Nd5 {[%emt 0:06:13]} 33. Be8 {[%emt 0:07:11]} Ke7 {[%emt 0:02:34]} 34. Ba4 {[%emt 0:00:06]} f5+ {[%emt 0:10:20]} 35. Kg5 {[%emt 0:00:43]} Nf6 {[%emt 0:00:42]} 36. Bc2 {[%emt 0:01:54]} Ng8 {[%emt 0:02:06]} 37. f3 {[%emt 0:07:09]} h6+ {[%emt 0:00:43]} 38. Kh5 {[%emt 0:04:35]} Kf6 {[%emt 0:08:00]} 39. g4 {[%emt 0:04:07]} fxg4 {[%emt 0:00:30]} 40. fxg4 {[%emt 0:00:00]} Kg7 {[%emt 0:00:00]} 41. g5 {[%emt 0:04:06]} hxg5 {[%emt 0:06:24]} 42. Kxg5 {[%emt 0:00:07]} Ne7 {[%emt 0:00:22]} 43. Be4 {[%emt 0:03:10]} f6+ {[%emt 0:00:24]} 44. Kh5 {[%emt 0:03:50]} f5 {[%emt 0:01:09]} 45. Bb7 {[%emt 0:01:09]} Kf6 {[%emt 0:00:19]} 46. Kh4 {[%emt 0:03:02]} Ng6+ {[%emt 0:01:26]} 47. Kg3 {[%emt 0:00:09]} Kg5 {[%emt 0:00:41]} 48. Bc8 {[%emt 0:03:06]} e5 {[%emt 0:00:15]} 49. Kf3 {[%emt 0:04:53]} Ne7 {[%emt 0:06:07]} 50. Be6 {[%emt 0:02:10]} Kh4 {[%emt 0:01:09]} 51. Bd7 {[%emt 0:02:15]} Kxh3 {[%emt 0:06:44]} 52. e4 {[%emt 0:00:06]} Kh4 {[%emt 0:00:03]} 53. exf5 {[%emt 0:00:32]} Kg5 {[%emt 0:00:07]} 54. Ke4 {[%emt 0:01:11]} Kf6 {[%emt 0:00:06]} 55. Be6 {[%emt 0:01:58]} Nc6 {[%emt 0:00:53]} 56. Bd7 {[%emt 0:02:43]} Nd4 {[%emt 0:00:18]} 57. a4 {[%emt 0:01:25]} a5 {[%emt 0:01:58]} 58. Bc8 {[%emt 0:00:43]} Nb3 {[%emt 0:00:43]} 59. Kd5 {[%emt 0:00:41]} e4 {[%emt 0:01:34]} 60. Kxe4 {[%emt 0:01:04]} Nc5+ {[%emt 0:00:05]} 61. Kd4 {[%emt 0:01:06]} Nxa4 {[%emt 0:00:11]} 62. Kc4 {[%emt 0:01:15]} Nb6+ {[%emt 0:00:21]} 1/2-1/2

[Event "Mitropa Cup Women 2019"]
[Site "Radenci"]
[Date "2019.06.02"]
[Round "7.12"]
[White "Gaal, Zsoka"]
[Black "Froewis, Annika"]
[Result "1-0"]
[ECO "A07"]
[WhiteElo "2044"]
[BlackElo "2089"]
[Annotator "NA RC"]
[PlyCount "131"]
[EventDate "2019.05.27"]
[EventType "team-tourn"]
[EventCountry "SLO"]
[SourceTitle "playchess.com"]
[Source "ChessBase"]
[SourceQuality "1"]
[WhiteTeam "Hungary"]
[BlackTeam "Austria"]
[WhiteTeamCountry "HUN"]
[BlackTeamCountry "AUT"]
[TimeControl "40/5400+30:1800+30"]

1. Nf3 {[%emt 0:00:00]} d5 {[%emt 0:00:00]} 2. g3 {[%emt 0:00:00]} e6 {[%emt 0:00:30]} 3. Bg2 {[%emt 0:00:00]} Nf6 {[%emt 0:00:27]} 4. O-O {[%emt 0:00:00]} b5 {[%emt 0:03:14]} (4... Be7 5. c4 O-O 6. d4 dxc4 7. Qc2 a6 8. a4 Bd7 9. Rd1 Bc6 10. Bg5 b5 11. Bxf6 Bxf6 12. Nc3 Qe8 13. d5 exd5 14. Nd4 Qe5 15. e4 dxe4 16. axb5 axb5 17. Nxc6 Nxc6 18. Rxa8 Rxa8 19. Qxe4 Qxe4 20. Bxe4 {½-½ (32) Rapport,R (2726)-Giri,A (2797) Shenzhen 2019}) 5. b3 {[%emt 0:01:42]} Bb7 {[%emt 0:11:54]} 6. Bb2 {[%emt 0:01:56] A07: Réti Opening: New York and Capablanca Systems} Nbd7 {[%emt 0:00:37]} 7. d3 {[%emt 0:02:38]} Be7 {[%emt 0:04:42]} 8. Nbd2 {[%emt 0:01:06]} c5 {[%emt 0:03:28]} 9. c4 {[%emt 0:00:32]} bxc4 {[%emt 0:04:57]} 10. bxc4 {[%emt 0:00:58]} d4 $146 {[%emt 0:01:48]} ({Predecessor:} 10... O-O 11. Qc2 d4 12. e3 dxe3 13. fxe3 Qc7 14. d4 {0-1 (25) Bitman,M (2051)-Gumula,D (2309) Poland 2008}) 11. Rb1 {[%emt 0:03:18]} Bc6 {[%emt 0:02:07]} 12. Ba3 {[%emt 0:02:34]} O-O {[%emt 0:06:27]} 13. Nb3 {[%emt 0:07:49]} e5 {[%emt 0:07:15]} 14. Qd2 {[%emt 0:05:10]} a5 {[%emt 0:03:49]} 15. Qc2 {[%emt 0:03:26]} Ra6 {[%emt 0:04:45]} 16. Nbd2 {[%emt 0:08:09]} Nh5 {[%emt 0:02:46]} 17. e3 {[%emt 0:04:15]} dxe3 {[%emt 0:07:54]} 18. fxe3 {[%emt 0:00:27]} f5 {[%emt 0:00:25]} 19. Rbe1 {[%emt 0:05:31]} g6 {[%emt 0:04:02]} 20. Bb2 {[%emt 0:05:00]} Bd6 {[%emt 0:03:11]} 21. Re2 {[%emt 0:09:38]} Rb6 {[%emt 0:03:52]} 22. Bc3 {[%emt 0:01:48]} Rb8 {[%emt 0:03:04]} 23. Nb3 {[%emt 0:05:21]} Bc7 {[%emt 0:02:46]} 24. d4 {[%emt 0:09:05]} Be4 {[%emt 0:03:52]} 25. Qd2 {[%emt 0:00:31]} exd4 {[%emt 0:01:36]} 26. exd4 {[%emt 0:00:36]} a4 {[%emt 0:01:38]} 27. Nxc5 {[%emt 0:02:52]} Nxc5 {[%emt 0:00:34]} 28. dxc5 {[%emt 0:00:05]} Bxg3 {[%emt 0:07:09]} 29. hxg3 {[%emt 0:03:58]} Nxg3 {[%emt 0:00:06]} 30. Ref2 {[%emt 0:01:16]} Nxf1 {[%emt 0:00:42]} 31. Rxf1 {[%emt 0:01:08]} Qxd2 {[%emt 0:01:26]} 32. Nxd2 {[%emt 0:01:15]} Bxg2 {[%emt 0:00:16]} 33. Kxg2 {[%emt 0:00:03]} Rfe8 {[%emt 0:02:31]} 34. Kf2 {[%emt 0:02:14]} g5 {[%emt 0:01:13]} 35. Nf3 {[%emt 0:01:34]} g4 {[%emt 0:00:31]} 36. Ne5 {[%emt 0:00:24]} Rbc8 {[%emt 0:00:47]} 37. c6 {[%emt 0:01:50]} Rxe5 {[%emt 0:01:28]} 38. Bxe5 {[%emt 0:00:09]} Rxc6 {[%emt 0:00:04]} 39. Rc1 {[%emt 0:00:53]} Kf7 {[%emt 0:00:49]} 40. c5 {[%emt 0:00:00]} Kg6 {[%emt 0:00:00]} 41. Bd6 {[%emt 0:03:13]} h5 {[%emt 0:05:22]} 42. Kg3 {[%emt 0:00:29]} Kg5 {[%emt 0:01:10]} 43. Be7+ {[%emt 0:00:20]} Kg6 {[%emt 0:00:17]} 44. Rd1 {[%emt 0:02:40]} Kf7 {[%emt 0:01:32]} 45. Bd6 {[%emt 0:00:49]} Rc8 {[%emt 0:03:13]} 46. Re1 {[%emt 0:04:32]} Kf6 {[%emt 0:02:33]} 47. Rc1 {[%emt 0:14:00]} (47. Kf4 $142) 47... Ke6 {[%emt 0:05:13]} 48. Rh1 {[%emt 0:01:50]} Rh8 {[%emt 0:02:40]} 49. Kh4 {[%emt 0:04:14]} Kd7 {[%emt 0:06:23]} 50. Re1 {[%emt 0:05:30]} Rg8 {[%emt 0:02:30]} 51. Kxh5 {[%emt 0:03:16]} g3 {[%emt 0:00:28]} 52. Rg1 {[%emt 0:00:35]} g2 {[%emt 0:00:47]} (52... Kc6 $142 53. Bxg3 (53. Rxg3 Rxg3 54. Bxg3 Kxc5 $11) 53... Rh8+ 54. Kg5 Re8 55. Kxf5 Re2) 53. Kh4 {[%emt 0:00:44]} Kc6 {[%emt 0:00:24]} 54. Kh3 {[%emt 0:00:16]} Rg4 {[%emt 0:04:46]} 55. Rxg2 {[%emt 0:00:55]} Rb4 {[%emt 0:00:18]} 56. a3 {[%emt 0:03:55]} (56. Rf2 $142) 56... Rc4 $2 {[%emt 0:00:48]} (56... Rb3+ {was called for.} 57. Kh4 (57. Rg3 f4 $11) 57... Rxa3) 57. Rg3 {[%emt 0:00:20]} f4 {[%emt 0:00:48]} 58. Rf3 {[%emt 0:00:29]} Re4 {[%emt 0:00:11]} 59. Kg4 {[%emt 0:00:17]} Kb5 {[%emt 0:00:49]} 60. Rxf4 {[%emt 0:00:30]} Re3 {[%emt 0:00:24]} 61. Rb4+ {[%emt 0:01:00]} Ka5 {[%emt 0:00:16]} 62. c6 {[%emt 0:00:14]} Rc3 {[%emt 0:00:51]} 63. c7 {[%emt 0:00:13]} Rc6 {[%emt 0:00:18]} 64. Rb8 {[%emt 0:00:50]} Rxd6 {[%emt 0:00:18]} 65. Ra8+ {[%emt 0:00:07]} Kb5 {[%emt 0:00:46]} 66. c8=Q {[%emt 0:00:18] Kc6 Kh3+} 1-0

[Event "Mitropa Cup Women 2019"]
[Site "Radenci"]
[Date "2019.06.02"]
[Round "7.13"]
[White "Georgescu, Lena"]
[Black "Gueci, Tea"]
[Result "1-0"]
[ECO "B23"]
[WhiteElo "2191"]
[BlackElo "2251"]
[Annotator "ChessBase"]
[PlyCount "99"]
[EventDate "2019.05.27"]
[EventType "team-tourn"]
[EventCountry "SLO"]
[SourceTitle "playchess.com"]
[Source "ChessBase"]
[SourceQuality "1"]
[WhiteTeam "Switzerland"]
[BlackTeam "Italy"]
[WhiteTeamCountry "SUI"]
[BlackTeamCountry "ITA"]
[TimeControl "40/5400+30:1800+30"]

1. e4 {[%emt 0:00:00]} c5 {[%emt 0:00:00]} 2. Nc3 {[%emt 0:00:00]} Nc6 {[%emt 0:00:00]} 3. Bb5 {[%emt 0:00:00]} Nd4 {[%emt 0:00:00]} 4. Bc4 {[%emt 0:00:00]} e6 {[%emt 0:00:00]} 5. Nge2 {[%emt 0:00:00]} Nf6 {[%emt 0:03:13]} 6. O-O {[%emt 0:00:53]} a6 {[%emt 0:02:36]} 7. d3 {[%emt 0:00:11]} d5 {[%emt 0:03:47]} 8. exd5 {[%emt 0:02:11]} exd5 {[%emt 0:00:06]} 9. Nxd5 {[%emt 0:01:34]} Nxd5 {[%emt 0:02:16]} 10. Nxd4 {[%emt 0:00:10]} cxd4 {[%emt 0:01:08]} 11. Qh5 {[%emt 0:00:13]} Be6 {[%emt 0:07:23]} 12. Re1 {[%emt 0:00:59]} Be7 {[%emt 0:14:20]} 13. Rxe6 {[%emt 0:01:01]} O-O {[%emt 0:00:41]} 14. Bxd5 {[%emt 0:08:42]} fxe6 {[%emt 0:01:24]} 15. Bxe6+ {[%emt 0:05:35]} Kh8 {[%emt 0:00:25]} 16. Bf5 {[%emt 0:03:01]} h6 {[%emt 0:12:36]} 17. Qg6 {[%emt 0:21:23]} Rxf5 {[%emt 0:01:41]} 18. Qxf5 {[%emt 0:00:18]} Qc7 {[%emt 0:01:39]} 19. Qe4 {[%emt 0:16:10]} Bf6 {[%emt 0:03:48]} 20. Bf4 {[%emt 0:03:09]} Qxc2 {[%emt 0:04:05]} 21. Qxb7 {[%emt 0:04:29]} Re8 {[%emt 0:03:08]} 22. Qxa6 {[%emt 0:01:58]} Qxb2 {[%emt 0:04:50]} 23. Rf1 {[%emt 0:00:35]} Re2 {[%emt 0:03:01]} 24. Bxh6 {[%emt 0:05:24]} Be7 {[%emt 0:16:15]} 25. Bf4 {[%emt 0:02:04]} Bb4 {[%emt 0:00:41]} 26. Qc8+ {[%emt 0:01:35]} Kh7 {[%emt 0:00:14]} 27. Qf5+ {[%emt 0:02:20]} Kg8 {[%emt 0:00:43]} 28. a4 {[%emt 0:03:01]} Qa2 {[%emt 0:01:20]} 29. Qc8+ {[%emt 0:04:37]} Kh7 {[%emt 0:01:16]} 30. Qf5+ {[%emt 0:00:29]} Kg8 {[%emt 0:00:07]} 31. Qb5 {[%emt 0:02:22]} Bc3 {[%emt 0:03:24]} 32. h4 {[%emt 0:00:59]} Rb2 {[%emt 0:01:31]} 33. Qe8+ {[%emt 0:00:21]} Kh7 {[%emt 0:00:06]} 34. Qh5+ {[%emt 0:01:37]} Kg8 {[%emt 0:00:08]} 35. Qe8+ {[%emt 0:00:11]} Kh7 {[%emt 0:00:06]} 36. h5 {[%emt 0:00:30]} Rb6 {[%emt 0:03:46]} 37. Qe4+ {[%emt 0:04:22]} Kg8 {[%emt 0:00:21]} 38. Qe8+ {[%emt 0:01:16]} Kh7 {[%emt 0:00:07]} 39. Be5 {[%emt 0:03:49]} Qe6 {[%emt 0:01:55]} 40. Qxe6 {[%emt 0:00:00]} Rxe6 {[%emt 0:00:00]} 41. f4 {[%emt 0:02:28]} Ra6 {[%emt 0:02:17]} 42. Rb1 {[%emt 0:01:50]} g6 {[%emt 0:02:12]} 43. Rb7+ {[%emt 0:04:56]} Kh6 {[%emt 0:00:19]} 44. hxg6 {[%emt 0:01:07]} Kxg6 {[%emt 0:00:50]} 45. g4 {[%emt 0:01:09]} Rxa4 {[%emt 0:00:57]} 46. Kg2 {[%emt 0:01:22]} Ra1 {[%emt 0:03:32]} 47. f5+ {[%emt 0:03:10]} Kg5 {[%emt 0:00:35]} 48. Rg7+ {[%emt 0:00:07]} Kh6 {[%emt 0:00:32]} 49. Rg6+ {[%emt 0:03:57]} Kh7 {[%emt 0:00:13]} 50. g5 {[%emt 0:00:25]} 1-0

[Event "Mitropa Cup Women 2019"]
[Site "Radenci"]
[Date "2019.06.02"]
[Round "7.16"]
[White "Raccanello, Marianna"]
[Black "Hund, Sarah"]
[Result "1-0"]
[ECO "C54"]
[WhiteElo "2019"]
[BlackElo "2016"]
[Annotator "NA"]
[PlyCount "65"]
[EventDate "2019.05.27"]
[EventType "team-tourn"]
[EventCountry "SLO"]
[SourceTitle "playchess.com"]
[Source "ChessBase"]
[SourceQuality "1"]
[WhiteTeam "Italy"]
[BlackTeam "Switzerland"]
[WhiteTeamCountry "ITA"]
[BlackTeamCountry "SUI"]
[TimeControl "40/5400+30:1800+30"]

1. e4 {[%emt 0:00:00]} e5 {[%emt 0:00:00]} 2. Nf3 {[%emt 0:00:00]} Nc6 {[%emt 0:00:00]} 3. Bc4 {[%emt 0:00:00]} Bc5 {[%emt 0:00:07]} 4. c3 {[%emt 0:00:07]} Nf6 {[%emt 0:00:11]} 5. d3 {[%emt 0:00:07]} d6 {[%emt 0:00:39]} 6. Bb3 {[%emt 0:00:26]} a5 {[%emt 0:00:44]} 7. Nbd2 {[%emt 0:03:33]} h6 {[%emt 0:03:43]} 8. Nf1 {[%emt 0:02:07]} Ng4 {[%emt 0:02:25]} 9. d4 {[%emt 0:04:26]} exd4 {[%emt 0:03:52]} 10. cxd4 {[%emt 0:00:07]} Bb4+ {[%emt 0:00:28]} 11. Bd2 {[%emt 0:00:18]} Qe7 {[%emt 0:01:48]} 12. Ng3 {[%emt 0:01:15]} O-O {[%emt 0:04:14]} 13. O-O {[%emt 0:00:13]} Nf6 {[%emt 0:00:52]} 14. Re1 {[%emt 0:01:48]} Bxd2 {[%emt 0:02:51]} 15. Qxd2 {[%emt 0:00:08]} Bg4 {[%emt 0:00:20]} 16. Nh4 {[%emt 0:04:40]} Rfe8 {[%emt 0:03:38]} 17. f3 {[%emt 0:06:27]} Bd7 {[%emt 0:03:08]} 18. Nhf5 {[%emt 0:00:30]} Qf8 {[%emt 0:03:13]} 19. Rac1 {[%emt 0:02:19]} Rec8 {[%emt 0:05:16]} 20. e5 {[%emt 0:02:39]} dxe5 {[%emt 0:03:17]} 21. dxe5 {[%emt 0:00:07]} Bxf5 {[%emt 0:00:30]} 22. Nxf5 {[%emt 0:01:56]} Rd8 {[%emt 0:01:15]} 23. Qf2 {[%emt 0:00:07]} Nd5 {[%emt 0:01:20]} 24. Qg3 {[%emt 0:08:39]} g6 {[%emt 0:07:44]} 25. e6 {[%emt 0:01:30]} Kh7 {[%emt 0:03:29]} 26. Nh4 {[%emt 0:10:09]} Nce7 {[%emt 0:02:49]} 27. exf7 {[%emt 0:02:42]} Qxf7 {[%emt 0:07:26]} 28. Rxc7 {[%emt 0:00:57]} g5 {[%emt 0:04:39]} 29. Bxd5 {[%emt 0:02:28]} Qxd5 {[%emt 0:00:19]} 30. Rexe7+ {[%emt 0:00:16]} Kg8 {[%emt 0:00:16]} 31. Rg7+ {[%emt 0:00:10]} Kf8 {[%emt 0:00:08]} 32. Ng6+ {[%emt 0:00:05]} Ke8 {[%emt 0:00:04]} 33. Rce7# {[%emt 0:00:06]} 1-0

[Event "Mitropa Cup Women 2019"]
[Site "Radenci"]
[Date "2019.06.03"]
[Round "8.1"]
[White "Havanecz, Bianka"]
[Black "Georgescu, Lena"]
[Result "1/2-1/2"]
[ECO "A11"]
[WhiteElo "2279"]
[BlackElo "2191"]
[Annotator "ChessBase"]
[PlyCount "61"]
[EventDate "2019.05.27"]
[EventType "team-tourn"]
[EventCountry "SLO"]
[SourceTitle "playchess.com"]
[Source "ChessBase"]
[SourceQuality "1"]
[WhiteTeam "Hungary"]
[BlackTeam "Switzerland"]
[WhiteTeamCountry "HUN"]
[BlackTeamCountry "SUI"]
[TimeControl "40/5400+30:1800+30"]

1. Nf3 {[%emt 0:00:00]} Nf6 {[%emt 0:00:00]} 2. g3 {[%emt 0:00:00]} d5 {[%emt 0:00:00]} 3. Bg2 {[%emt 0:00:00]} c6 {[%emt 0:00:00]} 4. O-O {[%emt 0:00:00]} Bg4 {[%emt 0:00:00]} 5. c4 {[%emt 0:00:00]} e6 {[%emt 0:00:02]} 6. cxd5 {[%emt 0:00:36]} exd5 {[%emt 0:00:12]} 7. d3 {[%emt 0:00:14]} Nbd7 {[%emt 0:02:31]} 8. Qb3 {[%emt 0:00:13]} Nc5 {[%emt 0:03:58]} 9. Qc2 {[%emt 0:00:05]} Be7 {[%emt 0:04:29]} 10. Nc3 {[%emt 0:00:42]} Bxf3 {[%emt 0:08:17]} 11. Bxf3 {[%emt 0:00:08]} d4 {[%emt 0:02:41]} 12. Nb1 {[%emt 0:01:39]} O-O {[%emt 0:01:36]} 13. b4 {[%emt 0:04:51]} Ne6 {[%emt 0:01:11]} 14. Bd2 {[%emt 0:02:56]} Qd7 {[%emt 0:05:44]} 15. a4 {[%emt 0:00:33]} Rfe8 {[%emt 0:06:47]} 16. Na3 {[%emt 0:00:40]} Nd5 {[%emt 0:02:16]} 17. Qb3 {[%emt 0:03:12]} Bg5 {[%emt 0:03:22]} 18. Ra2 {[%emt 0:16:20]} Bxd2 {[%emt 0:01:25]} 19. Rxd2 {[%emt 0:00:01]} Ng5 {[%emt 0:03:14]} 20. Bxd5 {[%emt 0:06:37]} cxd5 {[%emt 0:03:33]} 21. Nb5 {[%emt 0:14:14]} Rxe2 {[%emt 0:20:04]} 22. Rxe2 {[%emt 0:00:06]} Nf3+ {[%emt 0:00:34]} 23. Kg2 {[%emt 0:00:04]} Nh4+ {[%emt 0:04:24]} 24. Kg1 {[%emt 0:05:27]} Nf3+ {[%emt 0:01:05]} 25. Kg2 {[%emt 0:00:04]} Nh4+ {[%emt 0:00:21]} 26. gxh4 {[%emt 0:01:15]} Qg4+ {[%emt 0:00:07]} 27. Kh1 {[%emt 0:00:03]} Qf3+ {[%emt 0:01:09]} 28. Kg1 {[%emt 0:00:04]} Qg4+ {[%emt 0:00:09]} 29. Kh1 {[%emt 0:00:04]} Qf3+ {[%emt 0:00:14]} 30. Kg1 {[%emt 0:00:05]} Qg4+ {[%emt 0:00:03]} 31. Kh1 {[%emt 0:00:03]} 1/2-1/2

[Event "Mitropa Cup Women 2019"]
[Site "Radenci"]
[Date "2019.06.03"]
[Round "8.2"]
[White "De Seroux, Camille"]
[Black "Juhasz, Barbara"]
[Result "1/2-1/2"]
[ECO "B75"]
[WhiteElo "2143"]
[BlackElo "2207"]
[Annotator "RC"]
[PlyCount "117"]
[EventDate "2019.05.27"]
[EventType "team-tourn"]
[EventCountry "SLO"]
[SourceTitle "playchess.com"]
[Source "ChessBase"]
[SourceQuality "1"]
[WhiteTeam "Switzerland"]
[BlackTeam "Hungary"]
[WhiteTeamCountry "SUI"]
[BlackTeamCountry "HUN"]
[TimeControl "40/5400+30:1800+30"]

1. e4 {[%emt 0:00:00]} c5 {[%emt 0:00:00]} 2. Nf3 {[%emt 0:00:00]} Nc6 {[%emt 0:00:00]} 3. Nc3 {[%emt 0:00:42]} g6 {[%emt 0:00:09]} 4. d4 {[%emt 0:04:59]} cxd4 {[%emt 0:00:04]} 5. Nxd4 {[%emt 0:00:04]} Bg7 {[%emt 0:00:05]} 6. Be3 {[%emt 0:00:14]} Nf6 {[%emt 0:00:37]} 7. Bc4 {[%emt 0:00:34]} d6 {[%emt 0:00:07]} 8. f3 {[%emt 0:01:50]} Qb6 {[%emt 0:00:53]} 9. O-O {[%emt 0:39:38]} O-O {[%emt 0:25:34]} 10. Bb3 {[%emt 0:03:04]} Ng4 11. fxg4 {[%emt 0:15:06]} Bxd4 {[%emt 0:14:32]} 12. Bxd4 {[%emt 0:00:27]} Qxd4+ {[%emt 0:03:05]} 13. Qxd4 {[%emt 0:00:30]} Nxd4 {[%emt 0:00:05]} 14. h3 {[%emt 0:11:08]} Be6 {[%emt 0:12:09]} 15. Nd5 {[%emt 0:01:42]} Bxd5 {[%emt 0:01:22]} 16. exd5 {[%emt 0:01:23]} Rfc8 {[%emt 0:15:02]} 17. c3 {[%emt 0:00:40]} Nxb3 {[%emt 0:00:04]} 18. axb3 {[%emt 0:00:03]} Rc5 {[%emt 0:00:47]} 19. Rfd1 {[%emt 0:06:04]} Rb5 {[%emt 0:04:28]} 20. b4 {[%emt 0:02:42]} a6 {[%emt 0:00:03]} 21. Rd4 {[%emt 0:02:43]} Rc8 {[%emt 0:00:24]} 22. Kf2 {[%emt 0:01:01]} Rd8 {[%emt 0:09:55]} 23. Ke3 {[%emt 0:01:44]} e5 {[%emt 0:00:16]} 24. dxe6 {[%emt 0:00:22]} fxe6 {[%emt 0:00:03]} 25. Rad1 {[%emt 0:02:20]} Re5+ {[%emt 0:00:15]} 26. Re4 {[%emt 0:01:05]} Rxe4+ {[%emt 0:00:20]} 27. Kxe4 {[%emt 0:00:02]} Kf7 {[%emt 0:00:12]} 28. Ra1 {[%emt 0:02:43]} Ke7 {[%emt 0:00:38]} 29. Ra5 {[%emt 0:00:21]} Kd7 {[%emt 0:00:17]} 30. h4 {[%emt 0:00:35]} Rf8 {[%emt 0:01:49]} 31. h5 {[%emt 0:00:34]} e5 {[%emt 0:01:10]} 32. hxg6 {[%emt 0:00:36]} hxg6 {[%emt 0:00:04]} 33. g3 {[%emt 0:00:19]} Rf2 {[%emt 0:06:50]} 34. b5 {[%emt 0:00:18]} Rxb2 {[%emt 0:00:06]} 35. bxa6 {[%emt 0:00:11]} bxa6 {[%emt 0:00:04]} 36. Rxa6 {[%emt 0:00:15]} Re2+ {[%emt 0:02:35]} 37. Kd5 {[%emt 0:00:48]} Rd2+ {[%emt 0:00:04]} 38. Ke4 {[%emt 0:00:27]} Ke6 {[%emt 0:00:21]} 39. Rc6 {[%emt 0:01:40]} Rc2 {[%emt 0:03:00]} 40. Rc8 {[%emt 0:00:00]} Rc1 {[%emt 0:00:00]} 41. Rg8 {[%emt 0:16:29]} d5+ {[%emt 0:10:35]} 42. Kd3 {[%emt 0:01:17]} e4+ {[%emt 0:03:19]} 43. Kd2 {[%emt 0:05:10]} Rg1 {[%emt 0:00:04]} 44. Rxg6+ {[%emt 0:01:00]} Ke5 {[%emt 0:00:03]} 45. Rg5+ {[%emt 0:05:00]} Kd6 {[%emt 0:00:06]} 46. Rg8 {[%emt 0:01:09]} Rg2+ {[%emt 0:00:46]} 47. Ke3 {[%emt 0:01:18]} Rxg3+ {[%emt 0:00:05]} 48. Kd2 {[%emt 0:00:07]} Ke5 {[%emt 0:01:49]} 49. Re8+ {[%emt 0:02:12]} Kf4 {[%emt 0:00:15]} 50. Rf8+ {[%emt 0:00:31]} Ke5 {[%emt 0:02:02]} 51. Re8+ {[%emt 0:00:11]} Kf6 {[%emt 0:00:25]} 52. c4 {[%emt 0:01:23]} Rg2+ {[%emt 0:01:54]} 53. Ke3 {[%emt 0:00:40]} dxc4 {[%emt 0:02:49]} 54. Rxe4 {[%emt 0:00:21]} Rc2 {[%emt 0:01:15]} 55. Kd4 {[%emt 0:00:26]} Rc1 {[%emt 0:00:16]} 56. Re3 {[%emt 0:00:19]} Kg5 {[%emt 0:00:06]} 57. Rc3 {[%emt 0:00:10]} Rxc3 {[%emt 0:00:04]} 58. Kxc3 {[%emt 0:00:03]} Kxg4 {[%emt 0:00:05]} 59. Kxc4 {[%emt 0:00:04]} 1/2-1/2